bitfinex-derivatives/quotes_SOLF0:USTF0_20240829
["timestamp","ask_amount","ask_price","bid_price","bid_amount"]
[1724962390819,3.5545,140.63,140.62,0.04947616]
[1724962391422,30.8345,140.63,140.62,0.04947616]
[1724962391607,3.5551,140.61,140.56,91.28020726]
[1724962391808,27.28,140.61,140.56,91.28020726]
[1724962392018,27.28,140.61,140.57,3.5559]
[1724962392220,27.28,140.61,140.56,91.28020726]
[1724962392713,0.04875159,140.6,140.57,0.04778865]
[1724962393519,27.28,140.58,140.52,3.25301728]
[1724962393716,27.32875159,140.6,140.5,9.7856376]
[1724962393717,5.66,140.57,140.53,3.57584396]
[1724962393921,5.66,140.58,140.53,3.5569]
[1724962394220,5.66,140.58,140.53,3.52749292]
[1724962394419,3.60240478,140.57,140.54,0.05413582]
[1724962396722,0.04620478,140.57,140.54,0.05413582]
[1724962398023,3.555,140.61,140.54,0.05413582]
[1724962398612,3.555,140.61,140.56,3.5561]
[1724962399014,0.05398845,140.6,140.57,0.04495637]
[1724962399422,5.66,140.65,140.57,27.32495637]
[1724962399727,3.5539,140.66,140.6,3.5551]
[1724962400023,5.66,140.67,140.6,3.53775931]
[1724962400322,3.5536,140.67,140.61,3.5548]
[1724962400529,3.5536,140.67,140.6,3.53775931]
[1724962400530,0.05417061,140.65,140.63,0.04698574]
[1724962402225,0.05417061,140.65,140.63,3.60118574]
[1724962402822,3.5528,140.7,140.64,3.5542]
[1724962403821,3.553,140.69,140.64,3.5542]
[1724962404028,0.04487879,140.68,140.66,0.04545176]
[1724962404225,27.28,140.67,140.66,0.04545176]
[1724962404430,30.8335,140.67,140.66,0.04545176]
[1724962406128,3.5535,140.67,140.66,0.04545176]
[1724962407519,9.2135,140.67,140.66,0.04545176]
[1724962407724,3.5535,140.67,140.66,0.04545176]
[1724962407926,9.2135,140.67,140.66,0.04545176]
[1724962408425,3.5535,140.67,140.66,0.04545176]
[1724962410932,3.5542,140.65,140.61,3.5548]
[1724962411127,3.5542,140.65,140.59,1.2983]
[1724962411128,3.5542,140.65,140.59,2.5961]
[1724962411332,3.5542,140.65,140.59,6.16239559]
[1724962412031,3.5542,140.65,140.61,0.04877934]
[1724962412032,0.05423332,140.63,140.61,0.04877934]
[1724962412238,34.12,140.7,140.61,0.04877934]
[1724962412430,34.12,140.7,140.6,34.12]
[1724962412431,5.66,140.69,140.6,34.12]
[1724962412629,39.78,140.7,140.6,34.12]
[1724962412829,3.5534,140.68,140.6,34.12]
[1724962413229,0.05421042,140.65,140.63,3.60258487]
[1724962415328,0.05421042,140.65,140.63,0.04818487]
[1724962417937,37.6742,140.64,140.63,0.04818487]
[1724962418336,43.3142,140.64,140.63,0.04818487]
[1724962418543,3.5548,140.62,140.59,2.5961]
[1724962419538,3.60459024,140.62,140.59,2.64713168]
[1724962420435,3.60459024,140.62,140.59,0.05103168]
[1724962420436,3.555,140.61,140.59,0.05103168]
[1724962421541,3.60459024,140.62,140.59,0.05103168]
[1724962424142,0.04979024,140.62,140.59,0.05103168]
[1724962424535,0.04979024,140.62,140.59,3.60633168]
[1724962425034,0.04979024,140.62,140.59,0.05103168]
[1724962425239,3.5552,140.6,140.59,0.05103168]
[1724962425636,37.6752,140.6,140.59,0.05103168]
[1724962426042,30.8752,140.6,140.59,0.05103168]
[1724962426640,0.04979024,140.62,140.59,0.05103168]
[1724962426840,3.555,140.61,140.59,0.05103168]
[1724962427539,0.04979024,140.62,140.59,0.05103168]
[1724962428344,0.04979024,140.62,140.59,3.60653168]
[1724962429741,0.04979024,140.62,140.59,0.05103168]
[1724962430256,0.04979024,140.62,140.59,3.60643168]
[1724962430653,0.04979024,140.62,140.6,2.7406]
[1724962431553,0.04979024,140.62,140.59,0.05103168]
[1724962432062,3.5551,140.61,140.59,0.05103168]
[1724962432456,3.555,140.61,140.59,0.05103168]
[1724962433048,3.5552,140.6,140.59,0.05103168]
[1724962433951,30.8752,140.6,140.59,0.05103168]
[1724962436956,0.04979024,140.62,140.59,0.05103168]
[1724962437366,0.04979024,140.62,140.59,27.37103168]
[1724962437564,0.04979024,140.62,140.61,3.555]
[1724962438365,335.0,140.65,140.61,27.32]
[1724962438964,3.5533,140.68,140.63,3.5543]
[1724962439161,0.04587101,140.67,140.64,0.04494892]
[1724962439358,0.04587101,140.67,140.66,3.5537]
[1724962442861,335.0,140.75,140.66,34.08]
[1724962443065,28.44,140.77,140.66,34.08]
[1724962443271,369.08,140.8,140.68,34.08]
[1724962443473,5.64,140.79,140.68,37.7206985]
[1724962443669,3.5509,140.78,140.68,37.7206985]
[1724962443874,0.05417111,140.75,140.72,3.60292567]
[1724962445164,0.05417111,140.75,140.73,34.08]
[1724962445768,0.05417111,140.75,140.74,3.5517]
[1724962446176,3.5501,140.81,140.76,3.5512]
[1724962446479,3.5501,140.81,140.73,35.4576]
[1724962446480,5.64,140.83,140.75,34.08]
[1724962447073,28.42,140.86,140.78,0.05343843]
[1724962447269,0.05152893,140.83,140.78,3.66356484]
[1724962447478,0.05152893,140.83,140.79,0.04557864]
[1724962447776,0.05152893,140.83,140.79,3.59587864]
[1724962451775,0.05152893,140.83,140.79,0.04557864]
[1724962453381,0.05152893,140.83,140.79,3.59597864]
[1724962453675,0.05152893,140.83,140.79,34.12557864]
[1724962453975,0.05152893,140.83,140.81,3.5497]
[1724962454179,0.05152893,140.83,140.81,34.08]
[1724962454671,0.05152893,140.83,140.82,3.5497]
[1724962456481,0.05152893,140.83,140.81,3.5499]
[1724962457986,0.05152893,140.83,140.8,6.2788]
[1724962458482,0.05152893,140.83,140.8,2.7287]
[1724962459085,0.05152893,140.83,140.81,3.5499]
[1724962461479,0.05152893,140.83,140.8,6.2788]
[1724962462486,0.05152893,140.83,140.81,3.5499]
[1724962463377,0.05152893,140.83,140.8,3.5501]
[1724962463585,0.05152893,140.83,140.79,28.60207864]
[1724962463892,0.05152893,140.83,140.8,3.5501]
[1724962465086,0.05152893,140.83,140.79,0.04557864]
[1724962465393,27.30152893,140.83,140.79,0.04557864]
[1724962465783,32.92152893,140.83,140.79,0.04557864]
[1724962466183,3.5501,140.81,140.79,0.04557864]
[1724962467089,3.5502,140.8,140.79,0.04557864]
[1724962468985,0.05152893,140.83,140.79,0.04557864]
[1724962469788,0.05152893,140.83,140.8,3.5501]
[1724962469991,0.05152893,140.83,140.79,0.04557864]
[1724962469992,0.05152893,140.83,140.79,27.29557864]
[1724962470384,0.05152893,140.83,140.81,3.5498]
[1724962472198,0.05152893,140.83,140.82,3.5497]
[1724962472492,0.05152893,140.83,140.81,27.25]
[1724962472989,0.05152893,140.83,140.81,30.7998]
[1724962473595,0.05152893,140.83,140.81,27.25]
[1724962474689,0.05152893,140.83,140.79,33.54557864]
[1724962475790,0.05152893,140.83,140.8,3.5502]
[1724962476382,0.05152893,140.83,140.79,29.99517864]
[1724962476994,0.05152893,140.83,140.8,3.5501]
[1724962477493,0.05152893,140.83,140.79,29.99517864]
[1724962477494,0.05152893,140.83,140.79,33.54547864]
[1724962477690,0.05152893,140.83,140.79,29.99517864]
[1724962478094,0.05152893,140.83,140.79,33.54557864]
[1724962479292,0.05152893,140.83,140.8,4.89483273]
[1724962480290,0.05152893,140.83,140.8,8.11804498]
[1724962482993,0.05152893,140.83,140.8,11.66824498]
[1724962483190,0.05152893,140.83,140.81,4.90503411]
[1724962483499,0.05152893,140.83,140.8,6.77341225]
[1724962484098,0.05152893,140.83,140.81,4.90499848]
[1724962484290,0.05152893,140.83,140.8,6.77341225]
[1724962484494,0.05152893,140.83,140.79,33.21839089]
[1724962484696,0.05152893,140.83,140.8,4.90591664]
[1724962484996,3.60112893,140.83,140.8,4.90591664]
[1724962485191,3.60112893,140.83,140.79,33.21839089]
[1724962485400,3.60112893,140.83,140.79,29.99517864]
[1724962485589,3.60112893,140.83,140.79,33.54547864]
[1724962486303,3.60112893,140.83,140.8,3.5502]
[1724962487594,3.60112893,140.83,140.79,30.84587864]
[1724962488303,3.60112893,140.83,140.79,3.59587864]
[1724962495297,0.05152893,140.83,140.81,27.25]
[1724962496008,0.05152893,140.83,140.81,30.7999]
[1724962496204,0.05152893,140.83,140.81,27.25]
[1724962497299,0.05152893,140.83,140.82,3.5497]
[1724962497604,0.05152893,140.83,140.81,27.25]
[1724962498002,0.05152893,140.83,140.82,3.5497]
[1724962500505,0.05152893,140.83,140.81,27.25]
[1724962502416,0.05152893,140.83,140.82,3.5497]
[1724962502819,0.05152893,140.83,140.81,27.25]
[1724962503213,0.05152893,140.83,140.81,30.7998]
[1724962505117,27.25,140.82,140.79,0.04557864]
[1724962505320,32.85,140.82,140.79,0.04557864]
[1724962505525,0.05152893,140.83,140.79,0.04557864]
[1724962506226,3.5499,140.82,140.79,0.04557864]
[1724962506534,0.05152893,140.83,140.8,10.91]
[1724962507026,0.05152893,140.83,140.82,10.91]
[1724962513031,5.6,140.92,140.82,15.81857688]
[1724962513227,5.6,140.92,140.85,10.91]
[1724962513431,3.5481,140.89,140.85,10.91]
[1724962513725,16.51,140.92,140.85,10.91]
[1724962513930,10.91,140.89,140.87,0.04654624]
[1724962514530,3.5482,140.88,140.87,0.04654624]
[1724962517138,3.548,140.89,140.87,0.04654624]
[1724962517633,3.5482,140.88,140.87,0.04654624]
[1724962518433,0.05345309,140.9,140.87,0.04654624]
[1724962518434,3.548,140.89,140.87,10.95654624]
[1724962518833,3.60125309,140.9,140.87,10.95654624]
[1724962520642,0.05345309,140.9,140.87,14.50484624]
[1724962520931,0.05345309,140.9,140.89,10.91]
[1724962522329,0.05345309,140.9,140.87,0.04654624]
[1724962522330,0.05345309,140.9,140.88,10.91]
[1724962529844,3.60115309,140.9,140.87,10.95654624]
[1724962531241,0.05345309,140.9,140.87,10.95654624]
[1724962531641,0.05345309,140.9,140.87,14.50494624]
[1724962532745,0.05345309,140.9,140.87,10.95654624]
[1724962534342,0.05345309,140.9,140.87,14.50494624]
[1724962535047,0.05345309,140.9,140.89,10.91]
[1724962536238,0.05345309,140.9,140.87,10.95654624]
[1724962536439,0.05345309,140.9,140.87,0.04654624]
[1724962537437,10.96345309,140.9,140.87,0.04654624]
[1724962537841,3.5482,140.88,140.87,0.04654624]
[1724962538147,10.91,140.88,140.81,103.56505487]
[1724962538347,10.91,140.87,140.81,103.56505487]
[1724962539044,3.5491,140.85,140.81,107.11485487]
[1724962539240,3.5491,140.85,140.82,0.05365206]
[1724962539241,0.05044872,140.84,140.82,0.05365206]
[1724962540248,0.05044872,140.84,140.82,14.51325206]
[1724962540546,0.05044872,140.84,140.83,10.91]
[1724962542048,10.91,140.94,140.83,10.91]
[1724962542244,10.91,140.94,140.89,10.91]
[1724962542445,3.5476,140.91,140.89,10.91]
[1724962543048,0.0464708,140.91,140.9,10.91]
[1724962543852,0.0464708,140.91,140.9,14.4577]
[1724962544152,0.0464708,140.91,140.9,10.91]
[1724962546049,0.0464708,140.91,140.89,0.04475497]
[1724962549763,0.0464708,140.91,140.89,3.59255497]
[1724962549957,0.0464708,140.91,140.9,27.26]
[1724962551670,0.0464708,140.91,140.9,30.8077]
[1724962560470,0.0464708,140.91,140.9,27.26]
[1724962562973,0.0464708,140.91,140.9,30.8077]
[1724962563763,337.675,141.01,140.92,3.5471]
[1724962563968,2.675,141.01,140.93,27.26]
[1724962564466,2.675,141.01,140.93,30.8069]
[1724962564467,3.5461,140.97,140.93,30.8069]
[1724962564669,0.04236353,140.96,140.94,0.05122444]
[1724962564870,3.5458,140.98,140.94,0.05122444]
[1724962565271,0.04236353,140.97,140.95,30.8064]
[1724962565573,0.04236353,140.97,140.95,27.30805516]
[1724962565768,335.0,141.03,140.95,27.30805516]
[1724962565971,3.5444,141.04,141.01,10.88]
[1724962566187,556.45767948,141.11,141.01,10.88]
[1724962566370,10.88,141.09,141.02,10.88]
[1724962566573,3.5441,141.05,141.02,10.88]
[1724962566774,3.5441,141.05,140.97,5.58]
[1724962566775,355.0069568,141.08,141.01,10.88]
[1724962567076,10.88,141.04,141.02,0.04787876]
[1724962567873,338.5469568,141.08,140.96,2.6885]
[1724962567874,10.88,141.03,140.96,2.6885]
[1724962568069,32.81,141.04,140.96,2.6885]
[1724962568268,32.81,141.04,140.91,1.2668]
[1724962568269,27.23,141.02,140.91,1.2668]
[1724962568470,335.0,141.03,140.91,28.4968]
[1724962568471,27.23,141.0,140.91,28.4968]
[1724962568664,5.58,140.99,140.91,28.4968]
[1724962568877,0.04787876,140.96,140.94,0.04837072]
[1724962569676,3.5464,140.95,140.94,0.04837072]
[1724962571174,0.04787876,140.96,140.94,0.04837072]
[1724962571572,0.04787876,140.96,140.94,3.59497072]
[1724962571779,0.04787876,140.96,140.95,27.23]
[1724962571983,27.23,141.04,140.95,27.23]
[1724962572281,3.5451,141.01,140.96,3.546]
[1724962572780,3.5451,141.01,140.97,3.5459]
[1724962572975,3.5448,141.02,140.97,30.7759]
[1724962573174,5.58,141.05,140.98,27.28029342]
[1724962573371,335.0,141.06,140.98,30.82589342]
[1724962573680,3.5443,141.04,140.98,30.82589342]
[1724962573880,340.58,141.06,140.98,30.82589342]
[1724962574278,32.81,141.05,140.98,0.05029342]
[1724962574578,27.23,141.05,140.98,0.05029342]
[1724962574879,3.5451,141.01,140.98,0.05029342]
[1724962575269,5.58,141.04,140.98,0.05029342]
[1724962575270,3.5453,141.0,140.98,0.05029342]
[1724962575473,27.23,141.03,140.98,0.05029342]
[1724962575678,28.5923,141.03,140.98,0.05029342]
[1724962575878,3.5454,140.99,140.98,0.05029342]
[1724962577180,3.5453,141.0,140.98,0.05029342]
[1724962577779,3.545,141.01,140.98,0.05029342]
[1724962578477,3.5448,141.02,140.99,3.5454]
[1724962578678,335.0,141.05,140.98,0.05029342]
[1724962578883,3.5451,141.01,140.98,3.59599342]
[1724962579382,5.58,141.04,140.98,3.59599342]
[1724962579383,32.81,141.04,140.98,0.05029342]
[1724962579575,27.27479763,141.02,140.9,5.58]
[1724962579779,27.23,141.02,140.91,28.5874]
[1724962580079,1.3971,141.01,140.91,28.5874]
[1724962580282,5.58,141.0,140.91,28.5874]
[1724962580581,0.05029342,140.97,140.94,27.28450869]
[1724962580773,0.05029342,140.97,140.94,30.76339094]
[1724962581482,0.05029342,140.97,140.95,3.5464]
[1724962582778,0.05029342,140.97,140.96,3.5462]
[1724962583284,0.05029342,140.97,140.96,30.7762]
[1724962584577,0.05029342,140.97,140.96,27.23]
[1724962584781,0.05029342,140.97,140.95,4.9003]
[1724962584782,0.05029342,140.97,140.94,0.05450869]
[1724962587084,3.5462,140.96,140.94,0.05450869]
[1724962588086,3.59629342,140.97,140.94,0.05450869]
[1724962594391,0.05029342,140.97,140.94,0.05450869]
[1724962594881,3.59619342,140.97,140.94,0.05450869]
[1724962595681,3.5462,140.96,140.94,0.05450869]
[1724962598897,3.59619342,140.97,140.94,0.05450869]
[1724962599292,0.05029342,140.97,140.94,0.05450869]
[1724962599997,0.05029342,140.97,140.94,3.60120869]
[1724962600799,0.05029342,140.97,140.94,27.28450869]
[1724962600997,0.05029342,140.97,140.96,30.7762]
[1724962601491,3.5445,141.03,140.98,3.5456]
[1724962601801,1.3853,141.05,140.98,27.23]
[1724962602099,4.9293,141.05,141.0,3.5451]
[1724962602496,1.3853,141.05,141.01,0.04945268]
[1724962603098,3.5442,141.04,141.01,0.04945268]
[1724962603301,27.23,141.04,140.93,6.77335982]
[1724962603607,27.23,141.02,140.93,30.78014757]
[1724962603994,27.23,141.04,140.97,3.5459]
[1724962604306,0.04945268,141.02,140.99,0.05043946]
[1724962604505,5.60945268,141.02,140.99,0.05043946]
[1724962604805,3.545,141.01,140.99,0.05043946]
[1724962605102,5.56,141.01,140.99,0.05043946]
[1724962605302,0.04945268,141.02,140.99,0.05043946]
[1724962605507,5.56,141.01,140.99,0.05043946]
[1724962605707,3.5452,141.0,140.99,0.05043946]
[1724962605895,5.56,141.01,140.93,27.23]
[1724962606099,3.5456,140.99,140.95,3.5464]
[1724962606903,0.04511034,140.98,140.96,0.04680917]
[1724962608308,3.5459,140.97,140.96,0.04680917]
[1724962608799,9.1059,140.97,140.96,0.04680917]
[1724962612716,5.56,140.97,140.96,0.04680917]
[1724962612907,0.04511034,140.98,140.96,0.04680917]
[1724962613509,0.04511034,140.98,140.96,3.59300917]
[1724962616510,0.04511034,140.98,140.96,0.04680917]
[1724962617111,3.5459,140.97,140.96,0.04680917]
[1724962638414,30.7759,140.97,140.9,3.5477]
[1724962638622,3.5472,140.93,140.9,3.5477]
[1724962639023,3.5472,140.93,140.87,28.5289]
[1724962639024,5.54,140.92,140.87,1.2989]
[1724962639424,27.23,140.93,140.87,1.2989]
[1724962639631,0.04588062,140.91,140.88,0.04713568]
[1724962640128,5.58588062,140.91,140.88,0.04713568]
[1724962640330,3.548,140.89,140.88,0.04713568]
[1724962644132,30.778,140.89,140.88,0.04713568]
[1724962644523,30.778,140.89,140.81,2.6325]
[1724962644524,27.23,140.89,140.81,2.6325]
[1724962644829,27.23,140.87,140.81,2.6325]
[1724962645022,3.5494,140.84,140.81,2.6325]
[1724962645626,3.59848179,140.84,140.81,6.2320192]
[1724962646227,3.5497,140.82,140.81,2.6821192]
[1724962646836,3.5497,140.82,140.81,0.0496192]
[1724962655328,0.04908179,140.84,140.81,0.0496192]
[1724962655534,5.58908179,140.84,140.81,0.0496192]
[1724962656040,0.04908179,140.84,140.81,0.0496192]
[1724962656430,3.5496,140.83,140.81,0.0496192]
[1724962657334,3.5497,140.82,140.81,0.0496192]
[1724962658741,30.7797,140.82,140.81,0.0496192]
[1724962659945,27.23,140.8,140.74,1.4012]
[1724962660440,3.5512,140.76,140.74,1.4012]
[1724962660743,5.54,140.78,140.74,1.4012]
[1724962660940,0.052205,140.77,140.75,0.05044593]
[1724962663040,3.5512,140.76,140.75,0.05044593]
[1724962665937,0.052205,140.77,140.75,0.05044593]
[1724962666144,335.0,140.81,140.75,0.05044593]
[1724962666337,5.54,140.8,140.75,1.43314593]
[1724962666734,335.0,140.81,140.75,1.43314593]
[1724962666941,5.54,140.8,140.75,1.43314593]
[1724962667142,3.5509,140.78,140.75,1.43314593]
[1724962667533,5.59420172,140.79,140.75,1.43314593]
[1724962667734,9.14480172,140.79,140.75,1.43314593]
[1724962667946,0.05420172,140.79,140.75,1.43314593]
[1724962668335,3.5508,140.78,140.75,1.43314593]
[1724962669145,3.5512,140.76,140.75,1.43314593]
[1724962669352,0.05420172,140.79,140.75,1.43314593]
[1724962669940,3.5509,140.78,140.75,1.43314593]
[1724962670339,0.05420172,140.79,140.75,1.43314593]
[1724962670636,3.5511,140.77,140.75,1.43314593]
[1724962670836,0.05420172,140.79,140.75,1.43314593]
[1724962672439,3.5511,140.77,140.75,1.43314593]
[1724962673445,3.5511,140.77,140.75,0.05044593]
[1724962674444,0.05420172,140.79,140.75,0.05044593]
[1724962675054,3.5511,140.77,140.75,0.05044593]
[1724962677239,9.0708,140.78,140.75,3.60184593]
[1724962677439,3.5508,140.78,140.75,3.60184593]
[1724962677646,3.60470172,140.79,140.76,3.5511]
[1724962679945,3.60470172,140.79,140.75,3.60174593]
[1724962681248,3.60470172,140.79,140.76,3.5511]
[1724962681549,3.60470172,140.79,140.75,0.05044593]
[1724962681750,3.60470172,140.79,140.76,3.5512]
[1724962683348,0.05420172,140.79,140.75,0.05044593]
[1724962683544,5.57420172,140.79,140.75,0.05044593]
[1724962683744,5.52,140.78,140.75,0.05044593]
[1724962683954,3.5509,140.78,140.75,0.05044593]
[1724962684449,0.05420172,140.79,140.75,3.60174593]
[1724962684450,9.12470172,140.79,140.75,3.60174593]
[1724962684753,5.57420172,140.79,140.75,0.05044593]
[1724962685048,0.05420172,140.79,140.75,0.05044593]
[1724962685249,5.57420172,140.79,140.75,0.05044593]
[1724962685653,3.60480172,140.79,140.75,0.05044593]
[1724962686054,3.60480172,140.79,140.75,1.38104593]
[1724962687246,3.5507,140.78,140.75,0.05044593]
[1724962687651,5.57420172,140.79,140.75,0.05044593]
[1724962687952,10.96420172,140.79,140.75,0.05044593]
[1724962688258,5.57420172,140.79,140.75,0.05044593]
[1724962688660,3.5509,140.78,140.75,3.60184593]
[1724962688851,3.5509,140.78,140.75,14.51184593]
[1724962689154,3.5509,140.78,140.75,3.60184593]
[1724962694365,10.91,140.78,140.75,0.05044593]
[1724962694564,10.91,140.77,140.75,0.05044593]
[1724962695066,3.5512,140.76,140.75,0.05044593]
[1724962696870,10.91,140.78,140.75,0.05044593]
[1724962697276,3.5508,140.78,140.75,0.05044593]
[1724962698278,9.0708,140.78,140.75,0.05044593]
[1724962698483,3.5508,140.78,140.75,0.05044593]
[1724962698783,9.0708,140.78,140.75,0.05044593]
[1724962699478,3.551,140.77,140.75,0.05044593]
[1724962706886,3.5512,140.76,140.75,0.05044593]
[1724962707478,14.4612,140.76,140.75,0.05044593]
[1724962710389,10.91,140.76,140.75,0.05044593]
[1724962711288,3.5512,140.77,140.75,0.05044593]
[1724962711481,16.43,140.78,140.75,0.05044593]
[1724962711482,5.5,140.78,140.75,0.05044593]
[1724962711686,0.05420172,140.79,140.77,10.91]
[1724962711891,10.91,140.85,140.77,10.91]
[1724962712185,5.5,140.84,140.78,3.5084627]
[1724962712388,5.5,140.84,140.8,3.55]
[1724962712587,9.0494,140.84,140.8,3.55]
[1724962712787,10.91,140.86,140.79,10.91]
[1724962713094,0.0515744,140.84,140.81,3.6031777]
[1724962713598,0.0515744,140.84,140.82,3.5497]
[1724962715291,10.91,140.83,140.81,0.0533777]
[1724962715993,9.0497,140.82,140.81,0.0533777]
[1724962719685,5.5,140.82,140.81,0.0533777]
[1724962720285,9.0497,140.82,140.81,0.0533777]
[1724962725799,3.5505,140.79,140.76,3.5511]
[1724962726392,27.27,140.81,140.71,65.45225707]
[1724962726597,27.27,140.81,140.75,27.27]
[1724962726598,5.5,140.81,140.75,27.27]
[1724962726791,0.04473586,140.79,140.77,0.04789096]
[1724962726992,0.05278999,140.79,140.78,3.5506]
[1724962729997,3.5491,140.85,140.78,30.85815694]
[1724962730202,3.5491,140.85,140.8,27.27]
[1724962730505,3.5491,140.85,140.8,30.76525845]
[1724962730899,3.5491,140.85,140.82,3.5497]
[1724962731201,3.60082445,140.85,140.82,0.04863285]
[1724962731507,3.5492,140.84,140.82,0.04863285]
[1724962732302,3.60072445,140.85,140.82,0.04863285]
[1724962734105,3.60072445,140.85,140.82,3.59833285]
[1724962741301,3.60072445,140.85,140.82,0.04863285]
[1724962742717,3.60072445,140.85,140.82,3.59833285]
[1724962743308,3.5494,140.84,140.82,0.04863285]
[1724962744013,3.60072445,140.85,140.82,0.04863285]
[1724962745017,3.60072445,140.85,140.82,3.59833285]
[1724962746712,3.5492,140.84,140.82,0.04863285]
[1724962747114,0.05172445,140.85,140.82,0.04863285]
[1724962747115,3.60072445,140.85,140.82,0.04863285]
[1724962749320,3.5492,140.84,140.82,0.04863285]
[1724962750016,3.60082445,140.85,140.82,0.04863285]
[1724962750922,3.60082445,140.85,140.82,3.59823285]
[1724962753222,0.05172445,140.85,140.82,0.04863285]
[1724962753413,0.05172445,140.85,140.82,1.36673285]
[1724962753919,0.05172445,140.85,140.83,3.5492]
[1724962755414,0.05172445,140.85,140.82,1.36673285]
[1724962755718,10.9,140.83,140.82,0.04863285]
[1724962755921,16.38,140.83,140.82,0.04863285]
[1724962756123,10.9,140.83,140.82,0.04863285]
[1724962756621,19.9294,140.83,140.82,0.04863285]
[1724962757018,9.0294,140.83,140.82,0.04863285]
[1724962757226,14.4494,140.83,140.82,0.04863285]
[1724962757720,19.9294,140.83,140.82,0.04863285]
[1724962757922,14.4494,140.83,140.82,0.04863285]
[1724962758124,19.9294,140.83,140.82,0.04863285]
[1724962759225,19.9294,140.83,140.76,2.6417]
[1724962759226,14.4504,140.8,140.77,3.5508]
[1724962759830,3.5505,140.79,140.76,6.1928]
[1724962760036,3.59611339,140.79,140.76,6.24519938]
[1724962762227,3.59611339,140.79,140.76,3.60349938]
[1724962763125,3.59611339,140.79,140.76,0.05239938]
[1724962763628,3.59611339,140.79,140.76,3.60359938]
[1724962764832,0.04561339,140.79,140.76,3.60359938]
[1724962766628,0.04561339,140.79,140.77,3.5509]
[1724962767429,0.04561339,140.79,140.76,3.60359938]
[1724962767628,3.59611339,140.79,140.76,0.05239938]
[1724962769139,0.04561339,140.79,140.76,3.60349938]
[1724962772734,3.59611339,140.79,140.76,3.60349938]
[1724962774026,3.5507,140.78,140.76,0.05239938]
[1724962774224,10.9,140.77,140.76,0.05239938]
[1724962774836,14.451,140.77,140.76,0.05239938]
[1724962775838,3.5518,140.74,140.68,1.3806]
[1724962776033,14.4518,140.74,140.68,1.3806]
[1724962776229,10.9,140.73,140.69,3.5529]
[1724962776425,14.4522,140.73,140.69,3.5529]
[1724962776832,0.04829051,140.72,140.7,0.0474068]
[1724962778427,3.60059051,140.72,140.7,0.0474068]
[1724962778835,0.04829051,140.72,140.7,0.0474068]
[1724962781334,0.04829051,140.72,140.7,10.9474068]
[1724962781541,0.04829051,140.72,140.71,3.5525]
[1724962782344,0.04829051,140.72,140.71,14.4525]
[1724962782635,10.9,140.78,140.73,3.5518]
[1724962783334,3.551,140.77,140.73,3.5518]
[1724962783529,0.05402753,140.77,140.74,0.04999358]
[1724962783935,10.95402753,140.77,140.74,0.04999358]
[1724962784335,16.41402753,140.77,140.74,0.04999358]
[1724962784633,3.5513,140.76,140.74,0.04999358]
[1724962787243,10.9,140.75,140.74,0.04999358]
[1724962788337,14.4515,140.75,140.74,0.04999358]
[1724962791051,10.9,140.75,140.69,3.5527]
[1724962791231,10.9,140.7,140.67,1.3442]
[1724962791436,10.9,140.7,140.66,2.6493]
[1724962792146,0.04910511,140.69,140.67,0.04726449]
[1724962792338,0.04910511,140.69,140.67,3.60056449]
[1724962792542,0.04910511,140.69,140.67,0.04726449]
[1724962795346,0.04910511,140.69,140.67,3.60056449]
[1724962796246,3.5526,140.71,140.67,3.60056449]
[1724962796454,16.36,140.77,140.7,10.9]
[1724962796647,10.9,140.77,140.7,10.9]
[1724962796842,16.36,140.77,140.7,10.9]
[1724962797039,16.36,140.77,140.7,13.496]
[1724962797240,16.36,140.77,140.72,3.60318147]
[1724962797241,3.5513,140.76,140.72,3.60318147]
[1724962797439,0.04769109,140.75,140.72,3.60318147]
[1724962799652,27.28,140.79,140.72,0.05108147]
[1724962799653,3.5505,140.79,140.72,0.05108147]
[1724962799948,335.0,140.84,140.72,0.05108147]
[1724962799949,5.46,140.82,140.73,27.28]
[1724962800349,3.5504,140.8,140.75,3.5514]
[1724962800550,5.46,140.82,140.73,27.28]
[1724962800754,0.04713882,140.79,140.76,3.59601007]
[1724962803656,0.04713882,140.79,140.76,0.04501007]